bitfinex-derivatives/quotes_BTCF0:USTF0_20260119
["timestamp","ask_amount","ask_price","bid_price","bid_amount"]
[1768815199221,0.00990469,93120.0,93107.0,0.010746]
[1768815199426,0.00990469,93119.0,93103.0,0.010746]
[1768815199734,0.00990469,93118.0,93103.0,0.010746]
[1768815201136,0.02028957,93119.0,93103.0,0.010746]
[1768815201324,0.02028957,93119.0,93105.0,0.010746]
[1768815201836,0.02028957,93119.0,93103.0,0.010746]
[1768815202134,0.00954557,93119.0,93105.0,0.010746]
[1768815202628,0.00016109,93123.0,93099.0,0.00993451]
[1768815202836,0.00016109,93123.0,93110.0,0.010745]
[1768815203017,0.00016109,93123.0,93106.0,0.010746]
[1768815203219,0.010744,93122.0,93106.0,0.010746]
[1768815203421,0.00942772,93121.0,93106.0,0.010746]
[1768815203825,0.00016109,93123.0,93108.0,0.010746]
[1768815204129,0.00016109,93123.0,93097.0,0.0155495]
[1768815204130,0.00016109,93123.0,93110.0,0.010745]
[1768815205129,0.00016109,93123.0,93112.0,0.010745]
[1768815205734,0.00016109,93123.0,93110.0,0.14408234]
[1768815205937,0.09672,93127.0,93119.0,0.010744]
[1768815206937,0.09672,93127.0,93116.0,0.010745]
[1768815207238,0.00942772,93132.0,93114.0,0.010745]
[1768815207530,0.00942772,93130.0,93114.0,0.010745]
[1768815207735,0.00942772,93130.0,93116.0,0.010745]
[1768815208331,0.010743,93128.0,93113.0,0.010745]
[1768815208527,0.02017072,93128.0,93113.0,0.010745]
[1768815208733,0.00942772,93120.0,93108.0,0.00016109]
[1768815208932,0.00942772,93120.0,93097.0,0.09672]
[1768815208933,0.00942772,93109.0,93097.0,0.09672]
[1768815209535,0.010746,93108.0,93097.0,0.09672]
[1768815211329,0.010746,93108.0,93092.0,0.010747]
[1768815211529,0.010746,93108.0,93093.0,0.09672]
[1768815212530,0.010746,93108.0,93094.0,0.010747]
[1768815213040,0.15384311,93110.0,93094.0,0.010747]
[1768815213443,0.00976077,93110.0,93094.0,0.010747]
[1768815213840,0.010746,93109.0,93094.0,0.010747]
[1768815214342,0.010746,93109.0,93093.0,0.09672]
[1768815216634,0.02034568,93109.0,93104.0,9.5e-07]
[1768815216834,0.02034568,93109.0,93093.0,0.09672]
[1768815217128,0.02034568,93109.0,93093.0,0.107467]
[1768815217542,0.010746,93109.0,93093.0,0.107467]
[1768815217738,0.010746,93109.0,93093.0,0.010747]
[1768815218038,0.010746,93109.0,93094.0,0.09672]
[1768815220648,0.37,93100.0,93094.0,0.09672]
[1768815222844,0.37,93100.0,93095.0,0.010747]
[1768815223544,0.0099906,93099.0,93089.0,0.00236334]
[1768815223737,0.0099906,93095.0,93084.0,0.010748]
[1768815223934,0.00919115,93096.0,93084.0,0.010748]
[1768815224244,0.00919115,93096.0,93080.0,0.25155134]
[1768815224429,0.010747,93098.0,93082.0,0.010749]
[1768815224633,0.010747,93096.0,93080.0,0.09672]
[1768815224845,0.010747,93096.0,93081.0,0.010749]
[1768815227645,0.37,93100.0,93090.0,0.010748]
[1768815227942,0.37,93100.0,93087.0,0.010748]
[1768815228153,0.37,93100.0,93085.0,0.010748]
[1768815228746,0.380747,93100.0,93085.0,0.010748]
[1768815228940,0.010747,93097.0,93081.0,0.00951861]
[1768815229336,0.3907376,93100.0,93084.0,0.010748]
[1768815229846,0.0099906,93099.0,93084.0,0.010748]
[1768815233047,0.0099906,93099.0,93086.0,0.010748]
[1768815234451,0.010747,93098.0,93081.0,0.00951861]
[1768815235452,0.010747,93098.0,93084.0,0.010748]
[1768815236149,0.0099906,93099.0,93083.0,0.010748]
[1768815236150,0.0207376,93099.0,93083.0,0.010748]
[1768815237650,0.0207376,93099.0,93085.0,0.010748]
[1768815239355,0.010747,93099.0,93085.0,0.010748]
[1768815240353,0.0183575,93088.0,93080.0,0.09672]
[1768815240561,0.010749,93083.0,93069.0,0.09908385]
[1768815240753,0.15320314,93080.0,93069.0,0.08821519]
[1768815241355,0.0091208,93078.0,93069.0,0.08821519]
[1768815242454,0.0092367,93079.0,93069.0,0.08821519]
[1768815242658,0.14408234,93080.0,93069.0,0.08821519]
[1768815242857,0.0091208,93081.0,93069.0,0.08821519]
[1768815243363,0.00016109,93084.0,93069.0,0.08821519]
[1768815243364,0.00928189,93084.0,93069.0,0.08821519]
[1768815243564,0.00016109,93084.0,93077.0,0.010749]
[1768815243970,0.00016109,93084.0,93074.0,0.010749]
[1768815245678,0.14408234,93090.0,93074.0,0.010749]
[1768815246878,0.14408234,93090.0,93078.0,0.010749]
[1768815247482,0.010748,93089.0,93075.0,0.010749]
[1768815249185,0.14408234,93090.0,93075.0,0.010749]
[1768815249378,0.15320314,93090.0,93071.0,0.01075]
[1768815249569,0.0091208,93089.0,93071.0,0.01075]
[1768815250077,0.0183575,93087.0,93071.0,0.01075]
[1768815250281,0.010748,93085.0,93070.0,0.00016109]
[1768815250576,0.010749,93083.0,93070.0,0.00016109]
[1768815250781,0.16395214,93080.0,93070.0,1e-08]
[1768815250982,0.0091208,93079.0,93070.0,1e-08]
[1768815253786,0.0091208,93077.0,93070.0,1e-08]
[1768815255486,0.51408234,93080.0,93070.0,1e-08]
[1768815255686,0.37,93080.0,93070.0,0.01075001]
[1768815262581,0.00920673,93082.0,93070.0,1e-08]
[1768815262798,0.00920673,93093.0,93071.0,0.00969273]
[1768815262988,3.4e-07,93089.0,93086.0,0.010748]
[1768815263183,0.00975492,93098.0,93086.0,0.010748]
[1768815263379,0.00920673,93099.0,93086.0,0.010748]
[1768815263380,0.03344976,93097.0,93086.0,0.010748]
[1768815263595,0.00975492,93095.0,93083.0,0.010748]
[1768815263904,0.00975492,93094.0,93083.0,0.010748]
[1768815264400,0.00975492,93094.0,93080.0,0.010749]
[1768815265287,0.00975492,93091.0,93078.0,0.09672]
[1768815265486,0.00975492,93089.0,93078.0,0.09672]
[1768815270392,0.00975492,93089.0,93078.0,0.107469]
[1768815272200,0.00920673,93090.0,93080.0,0.010749]
[1768815272395,0.00975492,93093.0,93080.0,0.010749]
[1768815272605,0.02372182,93092.0,93082.0,0.010749]
[1768815272898,0.010748,93091.0,93078.0,0.09672]
[1768815273098,0.00975492,93090.0,93078.0,0.09672]
[1768815273300,0.00920673,93089.0,93078.0,0.09672]
[1768815273504,0.00975492,93088.0,93078.0,0.09672]
[1768815273702,0.00975492,93088.0,93078.0,0.107469]
[1768815273888,0.010748,93092.0,93078.0,0.107469]
[1768815274203,0.02050292,93092.0,93078.0,0.107469]
[1768815275001,0.00975492,93092.0,93078.0,0.107469]
[1768815276804,0.00975492,93092.0,93081.0,0.010749]
[1768815277004,0.02367639,93091.0,93081.0,0.010749]
[1768815277204,0.00975492,93092.0,93078.0,0.107469]
[1768815277407,0.010748,93091.0,93078.0,0.09672]
[1768815278403,0.010748,93089.0,93078.0,0.09672]
[1768815278700,0.02050292,93089.0,93078.0,0.09672]
[1768815279207,0.010748,93089.0,93078.0,0.09672]
[1768815279608,0.010748,93089.0,93075.0,0.107469]
[1768815279805,0.00920673,93091.0,93075.0,0.09672]
[1768815280005,0.01995473,93091.0,93076.0,0.010749]
[1768815280402,0.010748,93090.0,93077.0,0.010749]
[1768815280705,0.00920673,93091.0,93076.0,0.010749]
[1768815280902,0.00920673,93091.0,93078.0,0.010749]
[1768815281099,0.00920673,93091.0,93080.0,0.010749]
[1768815281299,0.00920673,93091.0,93077.0,0.010749]
[1768815281707,0.00920673,93091.0,93079.0,0.010749]
[1768815281909,0.02069511,93096.0,93079.0,0.010749]
[1768815282110,0.0236852,93095.0,93079.0,0.010749]
[1768815282407,0.0236852,93094.0,93079.0,0.010749]
[1768815282709,0.0236852,93093.0,93079.0,0.010749]
[1768815282907,0.02069511,93096.0,93076.0,0.00956848]
[1768815282908,0.0236852,93092.0,93081.0,0.010749]
[1768815283108,0.0236852,93091.0,93081.0,0.010749]
[1768815283301,0.00994811,93095.0,93081.0,0.010749]
[1768815283502,0.0236855,93094.0,93081.0,0.010749]
[1768815283802,0.0236855,93093.0,93081.0,0.010749]
[1768815284008,0.00663922,93092.0,93084.0,0.00956848]
[1768815284204,0.010747,93100.0,93084.0,0.00956848]
[1768815284422,0.010747,93100.0,93076.0,0.010749]
[1768815284615,0.02009926,93100.0,93076.0,0.010749]
[1768815284812,0.010747,93098.0,93083.0,0.010748]
[1768815285203,0.010747,93098.0,93075.0,0.09672]
[1768815285204,0.00935226,93099.0,93085.0,0.010748]
[1768815285908,0.00935226,93098.0,93085.0,0.010748]
[1768815287810,0.02009926,93097.0,93075.0,0.09672]
[1768815288412,0.02009926,93097.0,93084.0,0.010748]
[1768815288612,0.00935226,93097.0,93084.0,0.010748]
[1768815289113,0.010747,93100.0,93084.0,0.010748]
[1768815290015,0.02009926,93100.0,93084.0,0.010748]
[1768815291114,0.00935226,93097.0,93075.0,0.09672]
[1768815291616,0.02009926,93093.0,93075.0,0.09672]
[1768815293419,0.00935226,93093.0,93080.0,0.010749]
[1768815294317,0.00935226,93093.0,93082.0,0.010749]
[1768815295124,0.00907089,93073.0,93056.0,0.07735955]
[1768815295319,0.00907089,93073.0,93051.0,0.07735955]
[1768815295517,0.00907089,93073.0,93061.0,0.010751]
[1768815295818,0.00907089,93073.0,93061.0,0.0967209]
[1768815296019,0.00907089,93073.0,93066.0,0.0967209]
[1768815296218,0.01982089,93073.0,93066.0,0.0967209]
[1768815296422,0.00907089,93072.0,93061.0,0.01504952]
[1768815296717,0.00907089,93072.0,93058.0,0.010751]
[1768815297318,0.00907089,93072.0,93058.0,0.0254591]
[1768815298012,0.00907089,93072.0,93060.0,0.010751]
[1768815298413,0.01873461,93072.0,93060.0,0.010751]
[1768815298616,0.00907089,93071.0,93060.0,0.010751]
[1768815300423,0.00907089,93071.0,93058.0,0.0147081]
[1768815300620,0.00907089,93071.0,93052.0,0.09676]
[1768815300820,0.00907089,93071.0,93058.0,0.010751]
[1768815301016,0.02041272,93076.0,93058.0,0.0151739]
[1768815301221,0.010748,93090.0,93062.0,0.010751]
[1768815301222,0.010749,93079.0,93062.0,0.010751]
[1768815301619,0.010749,93079.0,93064.0,0.010751]
[1768815301920,0.00907089,93087.0,93063.0,0.09676]
[1768815302117,0.010748,93087.0,93071.0,0.01075]
[1768815302925,0.01981889,93087.0,93071.0,0.01075]
[1768815303225,0.00907089,93084.0,93064.0,0.09676]
[1768815305424,0.00907089,93084.0,93068.0,0.01075]
[1768815305818,0.00907089,93084.0,93070.0,0.01075]
[1768815306125,0.01143423,93089.0,93064.0,0.09676]
[1768815306324,0.01143423,93089.0,93067.0,0.01075]
[1768815306325,0.02356879,93088.0,93067.0,0.01075]
[1768815306631,0.010747,93100.0,93085.0,0.010748]
[1768815306828,0.010747,93097.0,93083.0,0.09676]
[1768815307029,0.010747,93095.0,93083.0,0.09676]
[1768815307626,0.010747,93093.0,93083.0,0.09676]
[1768815307826,0.00907089,93092.0,93083.0,0.09676]
[1768815308026,0.01981889,93091.0,93083.0,0.09439586]
[1768815308229,0.00907089,93090.0,93083.0,0.09439586]
[1768815308431,0.01873461,93090.0,93083.0,0.09439586]
[1768815308632,0.00907089,93089.0,93083.0,0.09439586]
[1768815309031,0.02041072,93094.0,93083.0,0.09439586]
[1768815309337,0.00966372,93093.0,93083.0,0.09439586]
[1768815310131,0.09676,93108.0,93083.0,0.09439586]
[1768815310132,0.02041072,93097.0,93083.0,0.09439586]
[1768815311932,0.00966372,93090.0,93077.0,0.00016118]
[1768815312135,0.00907089,93080.0,93061.0,0.09676]
[1768815312441,0.04310661,93098.0,93061.0,0.09676]
[1768815312442,0.01873461,93079.0,93061.0,0.107511]
[1768815313135,0.00907089,93073.0,93061.0,0.09676]
[1768815313333,0.01075,93070.0,93049.0,0.01985631]
[1768815313544,0.00966372,93066.0,93050.0,0.09676]
[1768815313838,0.01873461,93065.0,93050.0,0.09676]
[1768815314038,0.01873461,93065.0,93050.0,0.11139285]
[1768815314236,0.010751,93064.0,93043.0,0.00910431]
[1768815314454,0.010751,93064.0,93045.0,0.09676]
[1768815315846,0.010751,93064.0,93045.0,0.11205753]
[1768815317556,0.010751,93064.0,93045.0,0.12281053]
[1768815317757,0.01873461,93065.0,93045.0,0.12281053]
[1768815317949,0.01873461,93065.0,93048.0,0.010753]
[1768815318348,0.010751,93064.0,93045.0,0.11205753]
[1768815319155,0.02948561,93064.0,93045.0,0.11205753]
[1768815319354,0.010752,93057.0,93045.0,0.01529753]
[1768815319547,0.00670704,93056.0,93045.0,0.09676]
[1768815319859,0.01637076,93056.0,93045.0,0.09676]
[1768815320060,0.01637076,93056.0,93045.0,0.01527805]
[1768815320353,0.00966372,93055.0,93042.0,0.09676]
[1768815320656,0.010752,93057.0,93042.0,0.09676]
[1768815322355,0.02948661,93057.0,93042.0,0.09676]
[1768815323649,0.01883669,93056.0,93042.0,0.09676]
[1768815323859,0.00906704,93054.0,93042.0,0.09676]
[1768815324051,0.01883669,93054.0,93042.0,0.09676]
[1768815324249,0.00906704,93053.0,93042.0,0.09676]
[1768815324650,0.01883669,93053.0,93042.0,0.09676]
[1768815324853,0.01883669,93048.0,93034.0,0.09676]
[1768815325052,0.01883669,93047.0,93034.0,0.09676]
[1768815325760,0.01883669,93047.0,93034.0,0.11145009]
[1768815325970,0.01883669,93047.0,93034.0,0.12220409]
[1768815326256,0.01883669,93047.0,93034.0,0.11145009]
[1768815327263,0.02958969,93047.0,93034.0,0.11145009]
[1768815328263,0.01883669,93047.0,93034.0,0.11145009]
[1768815328462,0.01883669,93047.0,93035.0,0.010754]
[1768815328665,0.00976965,93046.0,93034.0,0.11145009]
[1768815329763,0.02052265,93046.0,93034.0,0.11145009]
[1768815330354,0.01883669,93043.0,93034.0,0.09676]
[1768815330555,0.010753,93041.0,93034.0,0.09676]
[1768815331166,0.010754,93037.0,93029.0,0.00245916]
[1768815331866,0.010754,93035.0,93029.0,0.00245916]
[1768815332057,0.010754,93035.0,93026.0,0.09676]
[1768815332962,0.00011036,93034.0,93026.0,0.09676]
[1768815336274,0.00011036,93034.0,93024.0,0.01311998]
[1768815337972,0.00011036,93034.0,93024.0,0.00236498]
[1768815338266,0.010754,93033.0,93024.0,0.00236498]
[1768815340268,0.00011036,93034.0,93024.0,0.00236498]
[1768815340458,0.01086436,93034.0,93024.0,0.00236498]
[1768815341267,0.010754,93032.0,93024.0,0.00236498]
[1768815343166,0.010755,93030.0,93024.0,0.00236498]
[1768815343769,0.01086436,93034.0,93011.0,0.00927818]
[1768815343963,0.01086436,93034.0,93009.0,0.09916538]
[1768815343964,0.00011036,93034.0,93021.0,0.02003418]
[1768815344165,0.00011036,93034.0,93021.0,0.00927818]
[1768815345882,0.00011036,93034.0,93020.0,0.0260517]
[1768815346866,0.010754,93033.0,93020.0,0.0260517]
[1768815348677,0.010754,93033.0,93018.0,0.010756]
[1768815348878,0.010754,93033.0,93018.0,0.02540555]
[1768815349669,0.00011036,93034.0,93020.0,0.010756]
[1768815350278,0.00011036,93034.0,93022.0,0.010756]
[1768815351078,0.010754,93033.0,93018.0,0.02540555]
[1768815351278,0.00011036,93034.0,93020.0,0.010756]
[1768815351577,0.01086436,93034.0,93020.0,0.010756]
[1768815352374,0.00011036,93034.0,93020.0,0.010756]
[1768815352583,0.00011036,93034.0,93022.0,0.010756]
[1768815353268,0.00011036,93034.0,93022.0,0.01986537]
[1768815354382,0.00011036,93034.0,93025.0,0.010755]
[1768815355575,0.00940739,93054.0,93034.0,0.010754]
[1768815355774,0.12041776,93048.0,93034.0,0.010754]
[1768815355974,0.02361776,93047.0,93034.0,0.010754]
[1768815356170,0.02361776,93046.0,93034.0,0.010754]
[1768815356474,0.02361776,93045.0,93036.0,0.010754]
[1768815356674,0.25187478,93050.0,93033.0,0.010754]
[1768815356877,0.0235674,93048.0,93033.0,0.010754]
[1768815357181,0.0235674,93047.0,93033.0,0.010754]
[1768815357381,0.0235674,93046.0,93033.0,0.010754]
[1768815357576,4e-07,93045.0,93030.0,0.00910937]
[1768815357786,0.010751,93058.0,93042.0,0.010753]
[1768815358277,0.010751,93058.0,93039.0,0.010754]
[1768815358475,0.00236447,93044.0,93039.0,0.010754]
[1768815358673,0.010752,93056.0,93041.0,0.00016118]
[1768815360074,0.0299142,93059.0,93041.0,0.00016118]
[1768815360380,0.00940739,93059.0,93041.0,0.00016118]
[1768815360771,0.00940739,93065.0,93050.0,0.010752]
[1768815360973,0.01075,93070.0,93050.0,0.14432278]
[1768815361182,0.15507278,93070.0,93053.0,0.010752]
[1768815362078,0.01075,93067.0,93050.0,0.010752]
[1768815362285,0.010751,93065.0,93050.0,0.010752]
[1768815362579,0.010751,93063.0,93046.0,0.010753]
[1768815362884,0.14432278,93060.0,93046.0,0.010753]
[1768815363081,0.010751,93063.0,93046.0,0.010753]
[1768815363684,0.02050581,93066.0,93050.0,0.010752]
[1768815364378,0.02050581,93066.0,93047.0,0.010753]
[1768815364683,0.02252235,93064.0,93047.0,0.010753]
[1768815364883,0.02252235,93064.0,93049.0,0.010752]
[1768815365682,0.02252235,93064.0,93046.0,0.010753]
[1768815365876,0.02252235,93064.0,93045.0,0.0968]
[1768815366579,0.00940739,93056.0,93045.0,0.0968]
[1768815366882,0.0191632,93056.0,93045.0,0.0968]
[1768815367775,0.00940739,93055.0,93045.0,0.0968]
[1768815367976,0.0299152,93053.0,93041.0,0.00016118]
[1768815368174,0.0191632,93053.0,93041.0,0.00016118]
[1768815368583,0.00940739,93053.0,93041.0,0.00016118]
[1768815368776,0.14432278,93060.0,93044.0,0.010753]
[1768815369087,0.010751,93062.0,93044.0,0.010753]
[1768815369381,0.0191632,93062.0,93046.0,0.010753]
[1768815369577,0.00940739,93061.0,93046.0,0.010753]
[1768815370476,0.0191632,93061.0,93046.0,0.010753]
[1768815370875,0.00940739,93059.0,93046.0,0.010753]
[1768815371080,0.00940739,93059.0,93048.0,0.010752]
[1768815371687,0.00940739,93059.0,93041.0,0.00016118]
[1768815372382,0.00236396,93064.0,93053.0,0.010752]
[1768815372582,0.09676,93068.0,93053.0,0.010752]
[1768815372986,0.09676,93068.0,93055.0,0.010752]
[1768815373389,0.10651581,93068.0,93050.0,0.14432278]
[1768815373584,0.00975581,93067.0,93048.0,0.00910937]
[1768815375386,0.00975581,93067.0,93052.0,0.010752]
[1768815375686,0.00975581,93066.0,93054.0,0.010752]
[1768815376889,0.00940739,93065.0,93041.0,0.00016118]
[1768815377190,0.00975581,93047.0,93035.0,0.010754]
[1768815377391,0.00975581,93047.0,93031.0,0.09676]
[1768815377392,0.00975581,93047.0,93032.0,0.010754]
[1768815377598,0.00975581,93047.0,93031.0,0.09676]
[1768815377795,0.00975581,93047.0,93031.0,0.107514]
[1768815378205,0.02050881,93045.0,93029.0,0.00236487]
[1768815378493,0.02050881,93045.0,93030.0,0.09676]
[1768815378688,0.02050881,93045.0,93030.0,0.107515]
[1768815379186,0.00975581,93045.0,93030.0,0.107515]
[1768815379489,0.00975581,93045.0,93030.0,0.09676]
[1768815380896,0.02050881,93043.0,93029.0,0.00236487]
[1768815381093,0.010754,93037.0,93029.0,0.00236487]
[1768815381488,0.010754,93035.0,93029.0,0.00236487]
[1768815381688,0.010754,93035.0,93024.0,0.00236498]
[1768815382698,0.010754,93033.0,93024.0,0.00236498]
[1768815382999,0.010754,93036.0,93024.0,0.00236498]
[1768815384398,0.020399,93036.0,93024.0,0.00236498]
[1768815384584,0.010754,93034.0,93024.0,0.00236498]
[1768815385189,0.009645,93035.0,93024.0,0.00236498]
[1768815385898,0.020399,93035.0,93024.0,0.00236498]
[1768815386100,0.009645,93035.0,93024.0,0.00236498]
[1768815386902,0.010754,93032.0,93024.0,0.00236498]
[1768815387101,0.010754,93032.0,93024.0,0.0022038]
[1768815387293,0.00838953,93032.0,93024.0,0.0022038]
[1768815388102,0.009645,93031.0,93024.0,0.0022038]
[1768815388302,0.010755,93030.0,93024.0,0.0022038]
[1768815389700,0.009645,93031.0,93024.0,0.0022038]
[1768815390201,0.0204,93031.0,93024.0,0.0022038]
[1768815391195,0.010754,93034.0,93024.0,0.0022038]
[1768815391400,0.00982898,93036.0,93024.0,0.0022038]
[1768815391603,0.010754,93037.0,93024.0,0.0022038]
[1768815392104,0.020399,93037.0,93024.0,0.0022038]
[1768815392294,0.010754,93035.0,93024.0,0.0022038]
[1768815393208,0.009645,93036.0,93024.0,0.0022038]
[1768815395002,0.009645,93036.0,93025.0,0.010755]
[1768815395396,0.009645,93036.0,93024.0,0.0022038]
[1768815396405,0.009645,93036.0,93024.0,0.0129588]
[1768815397602,0.009645,93036.0,93024.0,0.0022038]
[1768815397804,0.009645,93036.0,93026.0,0.010755]
[1768815398808,0.009645,93036.0,93024.0,0.0022038]
[1768815400500,0.010754,93035.0,93024.0,0.0022038]
[1768815400807,0.02026076,93035.0,93024.0,0.0022038]
[1768815401105,0.010753,93047.0,93024.0,0.0022038]
[1768815401106,0.00950676,93047.0,93026.0,0.00975184]
[1768815401610,0.02025976,93047.0,93028.0,0.010755]
[1768815402001,0.00950676,93046.0,93030.0,0.010755]
[1768815402710,0.00950676,93046.0,93032.0,0.010754]
[1768815402911,0.00950676,93046.0,93034.0,0.010754]
[1768815403112,0.00016118,93048.0,93036.0,0.010754]
[1768815406609,0.00950676,93044.0,93024.0,0.0022038]
[1768815406910,0.00950676,93038.0,93024.0,0.0022038]
[1768815408005,0.00950676,93034.0,93024.0,0.0022038]
[1768815408223,0.00950676,93033.0,93024.0,0.0022038]
[1768815417513,0.00992473,93032.0,93024.0,0.0022038]
[1768815417724,0.00992473,93030.0,93017.0,0.0968]
[1768815418019,0.00992473,93030.0,93018.0,0.010756]
[1768815418423,0.00952617,93031.0,93020.0,0.010756]
[1768815418720,0.0194509,93031.0,93018.0,0.0143876]
[1768815418920,0.0194509,93031.0,93017.0,0.010756]
[1768815419518,0.0194509,93031.0,93017.0,0.02544636]
[1768815419719,0.00992473,93030.0,93017.0,0.02544636]
[1768815420517,0.00992473,93030.0,93017.0,0.01469036]
[1768815420822,0.00992473,93026.0,93013.0,0.010757]
[1768815421020,0.010755,93029.0,93013.0,0.010757]
[1768815421021,0.02067973,93029.0,93013.0,0.010757]
[1768815421614,0.00992473,93028.0,93013.0,0.010757]
[1768815421815,0.00992473,93028.0,93013.0,0.02489697]
[1768815422015,0.02044235,93030.0,93013.0,0.02489697]
[1768815422221,0.010755,93028.0,93013.0,0.02489697]
[1768815422421,0.01961208,93030.0,93015.0,0.010756]
[1768815422721,0.00992473,93029.0,93015.0,0.010756]
[1768815423628,0.02067973,93029.0,93013.0,0.01413997]
[1768815423825,0.02067973,93029.0,93010.0,0.0968]
[1768815424027,0.010755,93027.0,93011.0,0.010757]
[1768815424517,0.00968735,93030.0,93004.0,0.00236549]
[1768815424518,0.00992473,93023.0,93004.0,0.00236549]
[1768815424709,0.00992473,93020.0,93010.0,0.0968]
[1768815425227,0.00992473,93020.0,93011.0,0.010757]
[1768815425427,0.00952617,93026.0,93016.0,0.010756]
[1768815427124,0.00016118,93030.0,93011.0,0.00922268]
[1768815427328,0.0968,93034.0,93019.0,0.00922268]
[1768815427528,0.00992473,93040.0,93019.0,0.00922268]
[1768815428328,0.00992473,93039.0,93024.0,0.010755]
[1768815428532,0.00992473,93037.0,93021.0,0.010756]
[1768815429730,0.010754,93036.0,93021.0,0.010756]
[1768815430431,0.00992473,93035.0,93018.0,0.0968]
[1768815430622,0.00992473,93033.0,93019.0,0.010756]
[1768815430833,0.00992473,93033.0,93021.0,0.010756]
[1768815433142,0.00992473,93033.0,93023.0,0.010755]
[1768815433341,0.00992473,93037.0,93025.0,0.010755]
[1768815434241,0.0122892,93044.0,93031.0,0.010754]
[1768815434540,0.02314471,93043.0,93033.0,0.00922268]
[1768815434744,0.00236436,93049.0,93040.0,0.010753]
[1768815434944,0.00236436,93049.0,93037.0,0.01997668]
[1768815435444,0.00236436,93049.0,93037.0,0.00922268]
[1768815436649,0.010753,93048.0,93034.0,0.00016118]
[1768815436850,0.00992473,93047.0,93034.0,0.00016118]
[1768815437448,0.00992473,93047.0,93034.0,0.01091518]
[1768815437650,0.00992473,93047.0,93036.0,0.010754]
[1768815437851,0.00236436,93049.0,93036.0,0.010754]
[1768815438153,0.00236436,93049.0,93038.0,0.010754]
[1768815438949,0.01228909,93049.0,93038.0,0.010754]
[1768815439149,0.01228909,93049.0,93035.0,0.010754]
[1768815439345,0.010753,93048.0,93034.0,0.00016118]
[1768815439542,0.02067773,93048.0,93034.0,0.00016118]
[1768815440249,0.00992473,93048.0,93034.0,0.00016118]
[1768815440448,0.00992473,93048.0,93035.0,0.010754]
[1768815441656,0.02067773,93048.0,93034.0,0.00016118]
[1768815441855,0.00992473,93047.0,93034.0,0.00016118]
[1768815442049,0.010753,93046.0,93034.0,0.00016118]
[1768815442855,0.02028828,93046.0,93034.0,0.00016118]
[1768815444352,0.010753,93044.0,93034.0,0.00016118]
[1768815445552,0.010753,93042.0,93034.0,0.00016118]
[1768815445954,0.02028828,93045.0,93034.0,0.00016118]
[1768815446955,0.00953528,93044.0,93034.0,0.00016118]
[1768815448364,0.00953528,93044.0,93034.0,0.00016118]
[1768815451764,0.00953528,93044.0,93035.0,0.010754]
[1768815453665,0.00953528,93044.0,93034.0,0.00016118]
[1768815454664,0.02028828,93044.0,93034.0,0.00016118]
[1768815454961,0.00953528,93044.0,93034.0,0.01091518]
[1768815457069,0.00953528,93044.0,93034.0,0.00016118]
[1768815458866,0.00953528,93044.0,93035.0,0.010754]
[1768815459667,0.00953528,93044.0,93034.0,0.00016118]
[1768815463470,0.00953528,93044.0,93034.0,0.01091518]
[1768815463874,0.00953528,93044.0,93034.0,0.00016118]
[1768815464271,0.00953528,93044.0,93034.0,0.01091518]
[1768815465876,0.00953528,93044.0,93034.0,0.00016118]
[1768815468868,0.0099907,93043.0,93032.0,0.0968]
[1768815470780,0.0099907,93043.0,93033.0,0.010754]
[1768815471683,0.0099907,93043.0,93032.0,0.0968]
[1768815472578,0.0099907,93043.0,93032.0,0.107554]
[1768815473878,0.0099907,93043.0,93032.0,0.0968]
[1768815474278,0.00908374,93042.0,93026.0,0.010755]
[1768815474482,0.00908374,93042.0,93027.0,0.0868]
[1768815474483,0.00908374,93036.0,93027.0,0.0868]
[1768815474685,0.00908374,93036.0,93027.0,0.097555]
[1768815475279,0.00908374,93036.0,93020.0,0.14431285]
[1768815475480,0.00908374,93036.0,93025.0,0.010755]
[1768815475687,0.00908374,93036.0,93022.0,0.010755]
[1768815475886,0.00908374,93036.0,93024.0,0.01311998]
[1768815476295,0.00908374,93036.0,93024.0,0.00236498]
[1768815478181,0.01990819,93037.0,93024.0,0.00236498]
[1768815478182,0.00908374,93034.0,93024.0,0.00236498]
[1768815478387,0.00908374,93032.0,93017.0,0.107556]
[1768815478696,0.00908374,93030.0,93017.0,0.107556]
[1768815478894,0.00908374,93030.0,93019.0,0.010756]
[1768815479193,0.00908374,93030.0,93021.0,0.010756]
[1768815481194,0.00908374,93030.0,93017.0,0.107556]
[1768815481792,0.00908374,93026.0,93017.0,0.0968]
[1768815482095,0.00908374,93026.0,93017.0,0.0768]
[1768815482292,0.00908374,93026.0,93018.0,0.010756]
[1768815483985,0.00915419,93032.0,93017.0,0.0768]
[1768815483986,0.00908374,93031.0,93020.0,0.010756]
[1768815485694,0.00908374,93031.0,93017.0,0.087556]
[1768815485897,0.00908374,93031.0,93019.0,0.010756]
[1768815486700,0.00908374,93031.0,93021.0,0.010756]
[1768815488900,0.00908374,93031.0,93017.0,0.010756]
[1768815489795,0.00236447,93044.0,93024.0,0.00984397]
[1768815489994,0.00236447,93044.0,93032.0,0.010754]
[1768815490589,0.01144821,93044.0,93034.0,0.010754]
[1768815490990,4.7e-07,93044.0,93030.0,0.14431285]
[1768815491187,0.00016118,93048.0,93040.0,0.010753]
[1768815491390,0.00908374,93054.0,93040.0,0.010753]
[1768815491587,0.01983574,93054.0,93038.0,0.010754]
[1768815491792,0.00908374,93053.0,93038.0,0.010754]
[1768815492195,0.14431285,93050.0,93038.0,0.010754]
[1768815493405,0.00908374,93051.0,93038.0,0.010754]
[1768815493703,0.15339659,93050.0,93038.0,0.010754]
[1768815494599,0.00908374,93049.0,93035.0,0.010754]
[1768815498607,0.01983574,93049.0,93035.0,0.010754]
[1768815498819,0.01983574,93049.0,93032.0,0.010754]
[1768815498993,0.01983574,93049.0,93034.0,0.010754]
[1768815501711,0.00908374,93049.0,93034.0,0.010754]
[1768815502910,0.00908374,93049.0,93036.0,0.010754]
[1768815503303,0.01983574,93049.0,93033.0,0.010754]
[1768815503508,0.0094574,93040.0,93029.0,0.00236487]
[1768815503806,0.0202114,93034.0,93019.0,0.0968]
[1768815504310,0.0094574,93033.0,93020.0,0.0968]
[1768815504505,0.0094574,93033.0,93024.0,0.00236498]
[1768815511315,0.0094574,93032.0,93020.0,0.107556]
[1768815511507,0.01852476,93032.0,93020.0,0.107556]
[1768815511713,0.0094574,93031.0,93020.0,0.107556]
[1768815513711,0.0094574,93028.0,93010.0,0.10130038]